bitfinex/quotes_BTCUSD_20240819
["timestamp","ask_amount","ask_price","bid_price","bid_amount"]
[1724039769094,1.58956975,58847.0,58846.0,0.0009042]
[1724039770708,1.59056975,58847.0,58846.0,0.0009042]
[1724039771207,1.73985089,58847.0,58846.0,0.0009042]
[1724039771457,1.76212447,58847.0,58846.0,0.0009042]
[1724039771703,2.00002947,58847.0,58846.0,0.0009042]
[1724039772814,2.00202947,58847.0,58846.0,0.0009042]
[1724039773254,2.14712947,58847.0,58846.0,0.0009042]
[1724039773583,2.14090414,58847.0,58846.0,0.0009042]
[1724039774199,2.15099279,58847.0,58846.0,0.0009042]
[1724039775236,2.12871921,58847.0,58846.0,0.0009042]
[1724039775515,2.14537601,58847.0,58846.0,0.0009042]
[1724039775712,2.15099512,58847.0,58846.0,0.0009042]
[1724039777988,2.03499512,58847.0,58846.0,0.0009042]
[1724039778160,2.15099512,58847.0,58846.0,0.0009042]
[1724039779333,2.12871921,58847.0,58846.0,0.0009042]
[1724039779534,2.15099524,58847.0,58846.0,0.0009042]
[1724039779742,2.14976297,58847.0,58846.0,0.0009042]
[1724039779922,2.12748694,58847.0,58846.0,0.0009042]
[1724039780126,2.14976297,58847.0,58846.0,0.0009042]
[1724039780607,2.08326297,58847.0,58846.0,0.0009042]
[1724039782739,2.08323668,58847.0,58846.0,0.0009042]
[1724039782943,2.32114168,58847.0,58846.0,0.0009042]
[1724039783178,2.08323668,58847.0,58846.0,0.0009042]
[1724039783383,2.32114168,58847.0,58846.0,0.0009042]
[1724039784903,2.08323668,58847.0,58846.0,0.0009042]
[1724039785343,2.32114168,58847.0,58846.0,0.0009042]
[1724039785533,2.38274168,58847.0,58846.0,2e-07]
[1724039785787,0.121976,58835.0,58834.0,0.0001581]
[1724039785973,1.1366389,58835.0,58834.0,0.0001581]
[1724039786177,1.66769819,58835.0,58834.0,0.0001581]
[1724039786523,1.69824895,58835.0,58834.0,0.0001581]
[1724039787388,1.86834212,58835.0,58834.0,0.0001581]
[1724039787596,1.87034212,58835.0,58834.0,0.0001581]
[1724039788009,2.04189666,58835.0,58834.0,0.0001581]
[1724039788219,1.87034212,58835.0,58834.0,0.0001581]
[1724039788428,1.69825335,58835.0,58834.0,0.0001581]
[1724039788628,1.70925335,58835.0,58834.0,0.0001581]
[1724039788840,1.69825335,58835.0,58834.0,0.0001581]
[1724039789044,1.69625335,58835.0,58834.0,0.0001581]
[1724039789253,1.88580789,58835.0,58834.0,0.0001581]
[1724039789681,1.87680789,58835.0,58834.0,0.0001581]
[1724039789857,1.87880789,58835.0,58834.0,0.0001581]
[1724039790315,1.88580789,58835.0,58834.0,0.0001581]
[1724039791322,1.89412116,58835.0,58834.0,0.0001581]
[1724039791557,1.86289503,58835.0,58834.0,0.0001581]
[1724039791793,1.86489503,58835.0,58834.0,0.0001581]
[1724039794505,1.86289503,58835.0,58834.0,0.0001581]
[1724039795102,1.86489503,58835.0,58834.0,0.0001581]
[1724039795303,2.03644957,58835.0,58834.0,0.0001581]
[1724039796045,2.01416914,58835.0,58834.0,0.0001581]
[1724039796242,2.03563974,58835.0,58834.0,0.0001581]
[1724039798044,2.03363974,58835.0,58834.0,0.0001581]
[1724039798239,2.02608898,58835.0,58834.0,0.0001581]
[1724039798440,2.17880541,58835.0,58834.0,0.0001581]
[1724039799291,1.9737154,58835.0,58834.0,0.0001581]
[1724039800939,1.9757154,58835.0,58834.0,0.0001581]
[1724039802057,1.9777154,58835.0,58834.0,0.0001581]
[1724039804280,2.41439704,58835.0,58834.0,0.0001581]
[1724039804714,2.17644404,58835.0,58834.0,0.0001581]
[1724039804922,2.41439704,58835.0,58834.0,0.0001581]
[1724039805130,2.17587279,58835.0,58834.0,0.0001581]
[1724039805335,2.05987279,58835.0,58834.0,0.0001581]
[1724039805549,2.17587279,58835.0,58834.0,0.0001581]
[1724039807208,3.45537279,58835.0,58834.0,0.0001581]
[1724039808260,3.28381825,58835.0,58834.0,0.0001581]
[1724039809472,3.52177125,58835.0,58834.0,0.0001581]
[1724039809695,3.28381825,58835.0,58834.0,0.0001581]
[1724039809905,3.52177125,58835.0,58834.0,0.0001581]
[1724039810108,3.28381825,58835.0,58834.0,0.0001581]
[1724039810308,3.44975264,58835.0,58834.0,1e-07]
[1724039810509,3.69332589,58835.0,58834.0,1e-07]
[1724039811551,1.07586,58831.0,58824.0,0.0009042]
[1724039811750,1.94918904,58831.0,58824.0,0.0009042]
[1724039811964,2.15400156,58831.0,58824.0,0.0009042]
[1724039812456,2.32555796,58831.0,58824.0,0.0009042]
[1724039812680,2.32855796,58831.0,58824.0,0.0009042]
[1724039812924,2.31189582,58831.0,58824.0,0.0009042]
[1724039813128,2.32955825,58831.0,58824.0,0.0009042]
[1724039813521,2.33855825,58831.0,58830.0,0.0019042]
[1724039814355,2.33009145,58831.0,58830.0,0.0019042]
[1724039814616,2.33909145,58831.0,58830.0,0.0019042]
[1724039814853,2.31709145,58831.0,58830.0,0.0009042]
[1724039815121,2.32509145,58831.0,58830.0,0.0009042]
[1724039815334,2.33409145,58831.0,58830.0,0.0009042]
[1724039816149,3.61359145,58831.0,58830.0,0.0009042]
[1724039817227,3.61359205,58831.0,58830.0,0.0009042]
[1724039817864,3.61359223,58831.0,58830.0,0.0009042]
[1724039818633,3.6135343,58831.0,58830.0,0.0009042]
[1724039820282,3.78543402,58831.0,58830.0,0.0009042]
[1724039821067,3.70233402,58831.0,58830.0,0.0009042]
[1724039821274,3.70233402,58831.0,58825.0,0.1471]
[1724039821275,1.313945,58826.0,58825.0,0.1471]
[1724039821474,2.06350708,58826.0,58825.0,0.1471]
[1724039821684,2.06350708,58826.0,58825.0,0.0818]
[1724039821937,2.06350708,58826.0,58824.0,0.0009042]
[1724039821938,1.075973,58825.0,58824.0,0.0009042]
[1724039822140,1.70960733,58825.0,58824.0,0.0009042]
[1724039822349,1.94760133,58825.0,58824.0,0.0009042]
[1724039823097,2.29105559,58825.0,58824.0,0.0009042]
[1724039823301,2.11915587,58825.0,58824.0,0.00045574]
[1724039823728,2.11915587,58825.0,58824.0,0.08305574]
[1724039823729,1.70560733,58825.0,58824.0,0.08305574]
[1724039823929,1.82160733,58825.0,58824.0,0.14835574]
[1724039824135,1.82160927,58825.0,58824.0,0.14835574]
[1724039824311,1.83560927,58825.0,58824.0,0.14835574]
[1724039824541,1.71860927,58825.0,58824.0,0.14835574]
[1724039824745,1.17114753,58825.0,58824.0,0.14835574]
[1724039824967,1.29306845,58825.0,58824.0,0.14835574]
[1724039825166,1.21932193,58825.0,58824.0,0.14835574]
[1724039825373,1.09120688,58825.0,58824.0,0.14835574]
[1724039825613,1.07720688,58825.0,58824.0,0.14835574]
[1724039825853,1.09620688,58825.0,58824.0,0.14835574]
[1724039826073,0.98020688,58825.0,58824.0,0.14835574]
[1724039826281,1.30163282,58825.0,58824.0,0.14835574]
[1724039826410,1.20276766,58825.0,58824.0,0.14835574]
[1724039826611,1.42912806,58825.0,58824.0,0.14835574]
[1724039827067,1.42771076,58825.0,58824.0,0.14835574]
[1724039827266,1.37209967,58825.0,58824.0,0.14835574]
[1724039827721,1.36909967,58825.0,58824.0,0.14835574]
[1724039827869,1.34843557,58825.0,58824.0,0.14835574]
[1724039828075,1.36509669,58825.0,58824.0,0.14935574]
[1724039828539,1.36509698,58825.0,58824.0,0.14935574]
[1724039828745,1.36509698,58825.0,58824.0,0.14835574]
[1724039829151,1.36509698,58825.0,58824.0,0.14935574]
[1724039829355,1.36509703,58825.0,58824.0,0.14935574]
[1724039829756,1.51232107,58825.0,58824.0,0.14935574]
[1724039829987,1.51794188,58825.0,58824.0,0.14935574]
[1724039830338,1.54723462,58825.0,58824.0,0.14935574]
[1724039830963,1.54723462,58825.0,58824.0,0.14835574]
[1724039831167,1.54923462,58825.0,58824.0,0.14835574]
[1724039831367,1.55123462,58825.0,58824.0,0.14835574]
[1724039831741,1.54923462,58825.0,58824.0,0.14835574]
[1724039832892,1.54361381,58825.0,58824.0,0.14835574]
[1724039833098,1.54923462,58825.0,58824.0,0.14835574]
[1724039834308,1.54361381,58825.0,58824.0,0.14835574]
[1724039834461,1.54561381,58825.0,58824.0,0.14835574]
[1724039836116,1.52895134,58825.0,58824.0,0.14835574]
[1724039836334,1.54561377,58825.0,58824.0,0.14835574]
[1724039836543,1.71716831,58825.0,58824.0,0.14835574]
[1724039838222,1.54561377,58825.0,58824.0,0.14835574]
[1724039838990,1.69862553,58825.0,58824.0,0.14835574]
[1724039839315,1.54561377,58825.0,58824.0,0.14835574]
[1724039840086,1.54561345,58825.0,58824.0,0.14835574]
[1724039840542,1.41295134,58825.0,58824.0,0.14835574]
[1724039840744,1.69862904,58825.0,58824.0,0.14835574]
[1724039840943,1.58262904,58825.0,58824.0,0.14835574]
[1724039841148,1.42961345,58825.0,58824.0,0.14835574]
[1724039841353,0.07166461,58825.0,58824.0,0.50535274]
[1724039841554,0.004,58825.0,58824.0,0.14835574]
[1724039841728,0.004,58825.0,58824.0,0.24835574]
[1724039841927,0.004,58825.0,58824.0,0.26735474]
[1724039842486,0.000822,58831.0,58827.0,0.1407]
[1724039842673,0.000822,58831.0,58826.0,0.118994]
[1724039842878,0.000822,58831.0,58827.0,0.1407]
[1724039843049,0.000822,58831.0,58827.0,0.237985]
[1724039843256,0.000822,58831.0,58825.0,0.1407]
[1724039843596,0.000822,58831.0,58830.0,0.1407]
[1724039843827,0.000822,58831.0,58830.0,0.259686]
[1724039844472,0.000822,58831.0,58830.0,0.1407]
[1724039844690,0.46292284,58831.0,58830.0,0.1407]
[1724039845111,0.51392534,58831.0,58830.0,0.1407]
[1724039846381,0.27595634,58831.0,58830.0,0.1407]
[1724039846604,0.22495384,58831.0,58830.0,0.1407]
[1724039846819,0.22495384,58831.0,58830.0,0.1417]
[1724039847503,0.000822,58831.0,58830.0,0.1417]
[1724039847714,0.000822,58831.0,58830.0,0.260686]
[1724039850614,0.000822,58831.0,58830.0,0.498659]
[1724039851452,0.000822,58831.0,58830.0,0.260686]
[1724039860545,0.000822,58831.0,58830.0,0.1417]
[1724039860756,0.36534254,58831.0,58830.0,0.0768]
[1724039860973,0.357775,58831.0,58830.0,0.0768]
[1724039861200,0.36534228,58831.0,58830.0,0.0768]
[1724039862092,0.12737328,58831.0,58830.0,0.0768]
[1724039862976,0.00838928,58831.0,58830.0,0.0768]
[1724039863183,0.00838928,58831.0,58830.0,0.1374]
[1724039863971,0.12737328,58831.0,58830.0,0.1374]
[1724039871053,0.00838928,58831.0,58830.0,0.1374]
[1724039871291,0.00838928,58831.0,58830.0,0.256386]
[1724039871814,0.00838928,58831.0,58830.0,0.494359]
[1724039871815,0.000822,58831.0,58830.0,0.494359]
[1724039872166,0.000822,58831.0,58830.0,0.732332]
[1724039873865,0.001822,58831.0,58830.0,0.733332]
[1724039874040,0.001822,58831.0,58830.0,0.732332]
[1724039874273,0.000822,58831.0,58830.0,0.731332]
[1724039874483,0.001822,58831.0,58830.0,0.732332]
[1724039875929,0.001822,58831.0,58830.0,0.735332]
[1724039876392,0.001822,58831.0,58830.0,0.732332]
[1724039876609,0.002822,58831.0,58830.0,0.740332]
[1724039877028,0.002822,58831.0,58830.0,0.75042235]
[1724039877245,0.002822,58831.0,58830.0,0.502359]
[1724039877719,0.002822,58831.0,58830.0,0.740332]
[1724039877925,0.002822,58831.0,58830.0,0.502359]
[1724039878346,0.002822,58831.0,58830.0,0.740332]
[1724039880828,0.002822,58831.0,58830.0,0.502359]
[1724039881850,0.002822,58831.0,58830.0,0.740332]
[1724039882056,0.002822,58831.0,58830.0,0.1454]
[1724039882466,0.002822,58831.0,58830.0,0.264386]
[1724039882668,0.01043438,58831.0,58830.0,0.264386]
[1724039882867,0.002822,58831.0,58830.0,0.264386]
[1724039883097,0.01043438,58831.0,58830.0,0.264386]
[1724039883303,0.002822,58831.0,58830.0,0.1454]
[1724039883506,0.01043438,58831.0,58830.0,0.0848]
[1724039885365,0.53430902,58831.0,58830.0,0.009]
[1724039885563,1.17685939,58831.0,58830.0,0.009]
[1724039885807,1.0750161,58831.0,58830.0,0.009]
[1724039886032,1.30392021,58831.0,58830.0,0.009]
[1724039886257,1.54188921,58831.0,58830.0,0.009]
[1724039886997,1.4145851,58831.0,58830.0,0.001]
[1724039887198,1.4135851,58831.0,58830.0,0.001]
[1724039887402,0.356985,58826.0,58825.0,0.0009042]
[1724039887633,0.53935307,58826.0,58825.0,0.0009042]
[1724039887864,0.5468509,58826.0,58825.0,0.0009042]
[1724039889250,0.7848409,58826.0,58825.0,0.0009042]
[1724039889997,0.7858409,58826.0,58825.0,0.0019042]
[1724039890227,0.7848409,58826.0,58825.0,0.0009042]
[1724039890482,0.7858409,58826.0,58825.0,0.0039042]
[1724039890688,0.7868409,58826.0,58825.0,0.0049042]
[1724039891709,0.7858409,58826.0,58825.0,0.0019042]
[1724039891931,0.9311409,58826.0,58825.0,0.0019042]
[1724039892137,0.9311409,58826.0,58825.0,0.0059042]
[1724039892138,1.10152233,58826.0,58825.0,0.0059042]
[1724039892342,1.20351946,58826.0,58825.0,0.0059042]
[1724039893272,1.10152233,58826.0,58825.0,0.0059042]
[1724039893507,0.47235306,58826.0,58825.0,0.0059042]
[1724039893752,0.548816,58826.0,58825.0,0.0059042]
[1724039895024,0.08596077,58826.0,58825.0,0.0661042]
[1724039895271,0.06046831,58826.0,58825.0,0.1480042]
[1724039897749,0.06046831,58826.0,58825.0,0.0878042]
[1724039897992,0.28533354,58826.0,58825.0,0.0059042]
[1724039898487,0.52332354,58826.0,58825.0,0.0059042]
[1724039899021,0.00949783,58826.0,58825.0,0.7430892]
[1724039899305,0.00949783,58826.0,58825.0,0.5050952]
[1724039899775,0.002,58826.0,58825.0,0.5050952]
[1724039900270,0.002,58826.0,58825.0,0.7430892]
[1724039905806,0.002822,58826.0,58825.0,0.7430892]
[1724039907565,0.002822,58826.0,58825.0,0.8590892]
[1724039908148,0.002822,58826.0,58825.0,1.0970832]
[1724039910031,0.002822,58826.0,58825.0,1.26863774]
[1724039910989,0.002822,58826.0,58825.0,1.26963774]
[1724039911513,0.002822,58826.0,58825.0,1.26863774]
[1724039911718,0.002822,58826.0,58825.0,1.50763174]
[1724039912196,0.002822,58826.0,58825.0,1.60958618]
[1724039912646,0.001822,58826.0,58825.0,1.60758618]
[1724039913099,0.002822,58826.0,58825.0,1.61858618]
[1724039914020,0.001822,58826.0,58825.0,1.61758618]
[1724039914263,0.002822,58826.0,58825.0,1.63158618]
[1724039917096,0.001822,58826.0,58825.0,1.62058618]
[1724039917256,0.000822,58826.0,58825.0,1.60658618]
[1724039917485,0.000822,58831.0,58830.0,1.21713244]
[1724039917813,0.000822,58839.0,58838.0,0.85710644]
[1724039918047,0.000822,58839.0,58838.0,1.79371823]
[1724039918250,0.000822,58839.0,58838.0,1.81907683]
[1724039918462,0.000822,58839.0,58838.0,1.60454298]
[1724039918646,0.000822,58839.0,58838.0,1.68054696]
[1724039918853,0.000822,58839.0,58838.0,1.83935133]
[1724039919061,0.000822,58839.0,58838.0,1.85335133]
[1724039919482,0.000822,58839.0,58838.0,1.65518355]
[1724039919896,0.000822,58839.0,58838.0,1.66918355]
[1724039920314,0.000822,58839.0,58838.0,1.67909283]
[1724039920534,0.000822,58839.0,58838.0,1.80634298]
[1724039920748,0.000822,58839.0,58838.0,1.79234298]
[1724039920958,0.000822,58839.0,58838.0,1.80634298]
[1724039921394,0.000822,58839.0,58838.0,1.79234298]
[1724039921613,0.000822,58839.0,58838.0,1.80634298]
[1724039928436,0.000822,58839.0,58838.0,1.87442398]
[1724039930128,0.000822,58839.0,58838.0,1.58462398]
[1724039933601,0.000822,58839.0,58838.0,1.34468298]
[1724039936157,0.000822,58839.0,58838.0,1.34668298]
[1724039939067,0.000822,58839.0,58838.0,1.17642854]
[1724039939313,0.000822,58839.0,58838.0,1.03234754]
[1724039940348,0.000822,58839.0,58838.0,1.01834754]
[1724039940552,0.000822,58839.0,58838.0,1.24834754]
[1724039940757,0.000822,58839.0,58838.0,1.23434754]
[1724039941599,0.000822,58839.0,58838.0,1.22034754]
[1724039941811,0.000822,58839.0,58838.0,1.24834754]
[1724039944178,0.000822,58839.0,58838.0,1.24934754]
[1724039944383,0.000822,58839.0,58838.0,1.39054754]
[1724039944607,0.000822,58839.0,58838.0,1.39354754]
[1724039945265,0.000822,58839.0,58838.0,1.39054754]
[1724039946908,0.000822,58839.0,58838.0,1.39154754]
[1724039947143,0.000822,58839.0,58838.0,1.39054754]
[1724039947345,0.000822,58839.0,58838.0,1.39154754]
[1724039947541,0.000822,58839.0,58838.0,1.39054754]
[1724039947753,0.000822,58839.0,58838.0,1.62848854]
[1724039947964,0.000822,58839.0,58838.0,1.63244298]
[1724039948166,0.000822,58839.0,58838.0,1.62944298]
[1724039948614,0.000822,58839.0,58838.0,1.21214754]
[1724039948813,0.000822,58839.0,58838.0,1.32814754]
[1724039952345,0.000822,58839.0,58838.0,1.24834754]
[1724039952556,0.065922,58839.0,58838.0,1.24834754]
[1724039952759,0.000822,58839.0,58838.0,1.24834754]
[1724039956348,0.000822,58839.0,58838.0,1.25831791]
[1724039960211,0.000822,58839.0,58838.0,1.24834754]
[1724039961370,0.000822,58839.0,58838.0,1.13234754]
[1724039965331,0.000822,58839.0,58838.0,1.24834754]
[1724039976567,0.000822,58839.0,58838.0,1.13234754]
[1724039985207,0.000822,58839.0,58838.0,1.27294754]
[1724039985432,0.000822,58839.0,58838.0,1.27194754]
[1724039985858,0.000822,58839.0,58838.0,1.27294754]
[1724039986064,0.000822,58839.0,58838.0,1.27494754]
[1724039986287,0.000822,58839.0,58838.0,1.27294754]
[1724039988016,0.000822,58839.0,58838.0,1.27194754]
[1724039989550,0.063322,58839.0,58838.0,0.722852]
[1724039990207,0.000822,58839.0,58838.0,0.722852]
[1724039999149,0.000822,58839.0,58838.0,0.384911]
[1724039999390,0.149522,58839.0,58838.0,0.14697]
[1724039999591,0.1573137,58839.0,58838.0,0.14697]
[1724040000247,0.1573137,58839.0,58838.0,0.13297]
[1724040000454,0.1573137,58839.0,58838.0,0.11897]
[1724040000904,0.1573137,58839.0,58838.0,0.370911]
[1724040001143,0.1573137,58839.0,58838.0,0.356911]
[1724040001371,0.1365,58838.0,58831.0,0.0009042]
[1724040001595,0.0607,58835.0,58831.0,0.0009042]
[1724040001818,0.0607,58835.0,58833.0,0.118979]
[1724040001819,0.0758,58834.0,58833.0,0.118979]
[1724040002489,0.0607,58835.0,58833.0,0.118979]
[1724040002706,0.0758,58837.0,58836.0,0.118974]
[1724040003320,0.0758,58837.0,58836.0,0.356923]
[1724040003950,0.0758,58837.0,58836.0,0.370923]
[1724040004167,0.0758,58837.0,58836.0,0.356923]
[1724040004596,0.0758,58837.0,58836.0,0.370923]
[1724040004808,0.0758,58837.0,58836.0,0.132974]
[1724040005227,0.0758,58837.0,58836.0,0.370923]
[1724040005714,0.0758,58837.0,58836.0,0.384923]
[1724040005901,0.0086137,58839.0,58838.0,0.11897]
[1724040006343,0.0086137,58839.0,58838.0,0.594852]
[1724040007254,0.0086137,58839.0,58838.0,0.606852]
[1724040007664,0.0086137,58839.0,58838.0,0.618852]
[1724040014914,0.1526137,58839.0,58838.0,0.618852]
[1724040015324,0.0706137,58839.0,58838.0,0.618852]
[1724040017414,0.0086137,58839.0,58838.0,0.618852]
[1724040017628,0.0086137,58839.0,58838.0,0.765152]
[1724040017629,0.000822,58839.0,58838.0,0.765152]
[1724040019403,0.000822,58839.0,58838.0,0.618852]
[1724040019890,0.064022,58839.0,58838.0,0.618852]
[1724040021018,0.064022,58839.0,58838.0,0.380911]
[1724040021252,0.064022,58839.0,58838.0,0.024]
[1724040021253,0.07173653,58839.0,58838.0,0.024]
[1724040022415,0.07173653,58839.0,58838.0,0.14297]
[1724040023109,0.42864153,58839.0,58838.0,0.024]
[1724040023334,0.26570453,58839.0,58838.0,0.024]
[1724040023764,0.50364153,58839.0,58838.0,0.024]
[1724040024705,0.74157853,58839.0,58838.0,0.024]
[1724040027150,0.42864153,58839.0,58838.0,0.024]
[1724040029129,0.42808067,58839.0,58838.0,0.024]
[1724040029819,0.66601767,58839.0,58838.0,0.024]
[1724040030036,0.42808067,58839.0,58838.0,0.024]
[1724040032381,0.00797567,58839.0,58838.0,0.1004]
[1724040033468,0.00797567,58839.0,58838.0,0.21937]
[1724040036209,0.00797567,58839.0,58838.0,0.457311]
[1724040036416,0.00797567,58839.0,58838.0,0.757052]
[1724040036625,0.00026114,58839.0,58838.0,0.757052]
[1724040038288,0.00026114,58839.0,58838.0,0.695252]
[1724040038503,0.00026114,58839.0,58838.0,0.457311]
[1724040038715,0.06556114,58839.0,58838.0,0.380911]
[1724040038913,0.07322409,58839.0,58838.0,0.380911]
[1724040040400,0.07042409,58839.0,58838.0,0.380911]
[1724040041027,0.00792409,58839.0,58838.0,0.618852]
[1724040041241,0.00792409,58839.0,58838.0,0.762352]
[1724040041471,0.00026114,58839.0,58838.0,0.762352]
[1724040042328,0.00026114,58839.0,58838.0,1.17184754]
[1724040042758,0.00026114,58839.0,58838.0,1.17680198]
[1724040042989,0.00026114,58839.0,58838.0,1.58267103]
[1724040043193,0.00026114,58839.0,58838.0,1.78425903]
[1724040043416,0.00026114,58839.0,58838.0,1.79765603]
[1724040043659,0.00026114,58839.0,58838.0,1.66882081]
[1724040043870,0.00026114,58839.0,58838.0,1.74492603]
[1724040044101,0.00026114,58839.0,58838.0,1.77292603]
[1724040044524,0.00026114,58839.0,58838.0,1.50089276]
[1724040044957,0.00026114,58839.0,58838.0,1.51489276]
[1724040045167,0.00026114,58839.0,58838.0,1.52889276]
[1724040045386,0.00026114,58839.0,58838.0,1.52489276]
[1724040045800,0.00026114,58839.0,58838.0,1.52779696]
[1724040046249,0.00026114,58839.0,58838.0,1.52979696]
[1724040047088,0.00026114,58839.0,58838.0,1.52579696]
[1724040047298,0.00026114,58839.0,58838.0,1.52779696]
[1724040047987,0.00026114,58839.0,58838.0,1.52579696]
[1724040049358,0.00026114,58839.0,58838.0,1.52779696]
[1724040051310,0.00026114,58839.0,58838.0,1.52979696]
[1724040053638,0.00026114,58839.0,58838.0,1.52579696]
[1724040054272,0.00026114,58839.0,58838.0,1.52779696]
[1724040054471,0.00026114,58839.0,58838.0,1.52579696]
[1724040054675,0.00026114,58839.0,58838.0,1.52779696]
[1724040055148,0.00026114,58839.0,58838.0,1.52979696]
[1724040055963,0.00026114,58839.0,58838.0,1.52779696]
[1724040056594,0.00026114,58839.0,58838.0,1.52579696]
[1724040056820,0.00026114,58839.0,58838.0,1.52779696]
[1724040057251,0.00026114,58839.0,58838.0,1.52579696]
[1724040057454,0.00026114,58839.0,58838.0,1.28690152]
[1724040057672,0.00026114,58839.0,58838.0,0.73390598]
[1724040057878,0.00026114,58839.0,58838.0,0.97184698]
[1724040058987,0.00026114,58839.0,58838.0,0.7237562]
[1724040059927,0.00026114,58839.0,58838.0,0.8397562]
[1724040060209,0.06526114,58839.0,58838.0,0.3858152]
[1724040060426,0.14506114,58839.0,58838.0,0.3858152]
[1724040061030,0.14506114,58839.0,58838.0,0.1478742]
[1724040061031,0.15280663,58839.0,58838.0,0.1478742]
[1724040062271,0.15280663,58839.0,58838.0,0.0289042]
[1724040065182,0.27177463,58839.0,58838.0,0.0289042]
[1724040065386,0.50971163,58839.0,58838.0,0.0289042]
[1724040066016,0.27177463,58839.0,58838.0,0.0289042]
[1724040066858,0.27177463,58839.0,58838.0,0.0149042]
[1724040067068,0.50971163,58839.0,58838.0,0.0009042]
[1724040067292,0.50971163,58839.0,58838.0,0.0229042]
[1724040067904,0.50971163,58839.0,58838.0,0.0119042]
[1724040068106,0.50971163,58839.0,58838.0,0.0229042]
[1724040070188,0.27177463,58839.0,58838.0,0.0229042]
[1724040073680,0.62571163,58839.0,58838.0,0.0229042]
[1724040075383,0.50971163,58839.0,58838.0,0.0229042]
[1724040078554,1.1125779,58839.0,58838.0,0.0229042]
[1724040078763,0.92551307,58839.0,58838.0,0.0229042]
[1724040078991,1.16345007,58839.0,58838.0,0.0229042]
[1724040079244,0.92551307,58839.0,58838.0,0.0229042]
[1724040079690,0.8746409,58839.0,58838.0,0.0119042]
[1724040080140,1.05954807,58839.0,58838.0,0.0049042]
[1724040080611,1.18886697,58839.0,58838.0,0.0089042]
[1724040080874,1.1125779,58839.0,58838.0,0.0089042]
[1724040081097,1.18885382,58839.0,58838.0,0.0089042]
[1724040082182,1.42869652,58839.0,58838.0,0.0089042]
[1724040082386,1.39963456,58839.0,58838.0,0.0089042]
[1724040082591,1.40163456,58839.0,58838.0,0.0089042]
[1724040082800,1.40071217,58839.0,58838.0,0.0089042]
[1724040083716,1.29905226,58839.0,58838.0,0.0089042]
[1724040083938,1.29905226,58839.0,58838.0,0.0049042]
[1724040084164,1.30105226,58839.0,58838.0,0.0009042]
[1724040084396,1.54098926,58839.0,58838.0,0.0009042]
[1724040084603,1.4585149,58839.0,58838.0,0.0009042]
[1724040085685,1.53271064,58839.0,58838.0,0.0009042]
[1724040085894,1.53171064,58839.0,58838.0,0.0009042]
[1724040086116,1.53571064,58839.0,58838.0,0.0019042]
[1724040086323,1.53171064,58839.0,58838.0,0.0019042]
[1724040086530,1.53371064,58839.0,58838.0,0.0019042]
[1724040086765,1.53371064,58839.0,58838.0,0.0009042]
[1724040086766,1.53171064,58839.0,58838.0,0.0009042]
[1724040086976,1.53971064,58839.0,58838.0,0.0029042]
[1724040087402,1.53171064,58839.0,58838.0,0.0019042]
[1724040087610,1.2175779,58839.0,58838.0,0.0019042]
[1724040088044,1.2175779,58839.0,58831.0,0.0009042]
[1724040088045,1.333642,58832.0,58831.0,0.0009042]
[1724040088259,1.43864538,58832.0,58831.0,0.0009042]
[1724040088481,1.54609907,58832.0,58831.0,0.0009042]
[1724040088698,1.56164538,58832.0,58831.0,0.0009042]
[1724040088910,1.20768038,58832.0,58831.0,0.0009042]
[1724040089123,1.20469838,58832.0,58831.0,0.0009042]
[1724040089381,1.32668038,58832.0,58831.0,0.0009042]
[1724040090243,1.6438149,58832.0,58831.0,0.0009042]
[1724040090449,1.57164538,58832.0,58831.0,0.0009042]
[1724040090896,1.64978214,58832.0,58831.0,0.0009042]
[1724040091336,1.57364538,58832.0,58831.0,0.0009042]
[1724040091559,1.74985043,58832.0,58831.0,0.0009042]
[1724040092639,1.57364538,58832.0,58831.0,0.0009042]
[1724040092857,1.64975445,58832.0,58831.0,0.0009042]
[1724040093105,1.64975445,58832.0,58831.0,0.1392042]
[1724040093106,0.007,58832.0,58831.0,0.1392042]
[1724040093614,0.007,58832.0,58831.0,0.0785042]
[1724040093615,0.125982,58832.0,58831.0,0.0785042]
[1724040093853,0.241982,58832.0,58831.0,0.0785042]
[1724040094073,0.12,58832.0,58831.0,0.0785042]
[1724040094290,0.237982,58832.0,58831.0,0.0785042]
[1724040094500,0.003,58832.0,58831.0,0.0815042]
[1724040094933,0.003,58832.0,58831.0,0.0785042]
[1724040095573,0.11898,58833.0,58831.0,0.0785042]
[1724040095842,0.11898,58833.0,58831.0,0.0795042]
[1724040096306,0.11898,58833.0,58831.0,0.0785042]
[1724040096764,0.11898,58833.0,58831.0,0.0795042]
[1724040097253,0.11898,58833.0,58831.0,0.0785042]
[1724040097533,0.0802,58838.0,58831.0,0.0009042]
[1724040097786,0.118982,58832.0,58831.0,0.0009042]
[1724040098025,0.356947,58832.0,58831.0,0.0009042]
[1724040098265,0.118982,58832.0,58831.0,0.0009042]
[1724040100544,0.118982,58832.0,58831.0,0.0019042]
[1724040101083,0.118982,58832.0,58831.0,0.0029042]
[1724040101348,0.118982,58832.0,58831.0,0.0019042]
[1724040105056,0.181382,58832.0,58831.0,0.0019042]
[1724040106369,0.182204,58832.0,58831.0,0.0019042]
[1724040107536,0.119804,58832.0,58831.0,0.0019042]
[1724040107827,0.119804,58832.0,58831.0,0.1460042]
[1724040108057,0.000822,58832.0,58831.0,0.1460042]
[1724040108811,0.000822,58832.0,58831.0,0.2649882]
[1724040109261,0.000822,58832.0,58831.0,0.1460042]
[1724040109721,0.000822,58832.0,58831.0,0.2649882]
[1724040112182,0.000822,58832.0,58831.0,0.1460042]
[1724040112674,0.000822,58832.0,58831.0,0.2649882]
[1724040113167,0.000822,58832.0,58831.0,0.1460042]
[1724040113642,0.000822,58832.0,58831.0,0.2649882]
[1724040114099,0.000822,58832.0,58831.0,0.67451174]
[1724040114333,0.000822,58832.0,58831.0,1.39181818]
[1724040114767,0.000822,58832.0,58831.0,1.39281818]
[1724040114983,0.000822,58832.0,58831.0,1.39181818]
[1724040115195,0.000822,58832.0,58831.0,1.39381818]
[1724040115430,0.000822,58832.0,58831.0,1.49677262]
[1724040115864,0.000822,58832.0,58831.0,1.49577262]
[1724040116078,0.000822,58832.0,58831.0,1.50777262]
[1724040116551,0.000822,58832.0,58831.0,1.51977262]
[1724040119881,0.000822,58832.0,58831.0,1.51237318]
[1724040120100,0.000822,58832.0,58831.0,1.51437318]
[1724040120384,0.000822,58832.0,58831.0,1.50237318]
[1724040120598,0.000822,58832.0,58831.0,1.50037318]
[1724040120844,0.000822,58832.0,58831.0,1.50237318]
[1724040121074,0.000822,58832.0,58831.0,1.51637318]